Workbook

Sheet Sheet4 (2)
A1: 北京师范大学黔南龙溪实验学校招聘员额制教师面试成绩及进入综合面试人员名单
A2: 序号 | B2: 姓名 | C2: 报考岗位 | D2: 面试准考证号 | E2: 笔试成绩 | F2: 面试成绩 | G2: 笔试面试折算后成绩 | H2: 是否进入综合面试
A3: 1 | B3: 赵杰 | C3: =VLOOKUP(B3,[1]Sheet1!$A:$N,14,FALSE) -> 小学体育教育教学 | D3: 111101011602 | E3: =VLOOKUP(B3,[1]Sheet1!$A:$D,4,FALSE) -> 60 | F3: 82.21 | G3: =VLOOKUP(B3,[1]Sheet1!$A:$G,7,FALSE) -> 50.88 | H3: 是
A4: 2 | B4: 杨光明 | C4: =VLOOKUP(B4,[1]Sheet1!$A:$N,14,FALSE) -> 小学体育教育教学 | D4: 111101031602 | E4: =VLOOKUP(B4,[1]Sheet1!$A:$D,4,FALSE) -> 73 | F4: 0 | G4: =VLOOKUP(B4,[1]Sheet1!$A:$G,7,FALSE) -> 21.90 | H4: 否
A5: 3 | B5: 叶家巧 | C5: =VLOOKUP(B5,[1]Sheet1!$A:$N,14,FALSE) -> 小学语文教育教学 | D5: 111101180202 | E5: =VLOOKUP(B5,[1]Sheet1!$A:$D,4,FALSE) -> 64 | F5: 0 | G5: =VLOOKUP(B5,[1]Sheet1!$A:$G,7,FALSE) -> 19.20 | H5: 否
A6: 4 | B6: 施丽平 | C6: =VLOOKUP(B6,[1]Sheet1!$A:$N,14,FALSE) -> 初中信息科技/技术教育教学 | D6: 111102011803 | E6: =VLOOKUP(B6,[1]Sheet1!$A:$D,4,FALSE) -> 67 | F6: 72 | G6: =VLOOKUP(B6,[1]Sheet1!$A:$G,7,FALSE) -> 48.90 | H6: 否
A7: 5 | B7: 张荣荣 | C7: =VLOOKUP(B7,[1]Sheet1!$A:$N,14,FALSE) -> 初中数学教育教学 | D7: 111102030303 | E7: =VLOOKUP(B7,[1]Sheet1!$A:$D,4,FALSE) -> 72 | F7: 73.71 | G7: =VLOOKUP(B7,[1]Sheet1!$A:$G,7,FALSE) -> 51.08 | H7: 否
A8: 6 | B8: 吴娴 | C8: =VLOOKUP(B8,[1]Sheet1!$A:$N,14,FALSE) -> 初中生物教育教学 | D8: 111102050703 | E8: =VLOOKUP(B8,[1]Sheet1!$A:$D,4,FALSE) -> 62 | F8: 80.06 | G8: =VLOOKUP(B8,[1]Sheet1!$A:$G,7,FALSE) -> 50.62 | H8: 是
A9: 7 | B9: 张西亚 | C9: =VLOOKUP(B9,[1]Sheet1!$A:$N,14,FALSE) -> 初中生物教育教学 | D9: 111102080703 | E9: =VLOOKUP(B9,[1]Sheet1!$A:$D,4,FALSE) -> 61 | F9: 82.99 | G9: =VLOOKUP(B9,[1]Sheet1!$A:$G,7,FALSE) -> 51.50 | H9: 是
A10: 8 | B10: 田芳 | C10: =VLOOKUP(B10,[1]Sheet1!$A:$N,14,FALSE) -> 初中英语教育教学 | D10: 111102120403 | E10: =VLOOKUP(B10,[1]Sheet1!$A:$D,4,FALSE) -> 76.5 | F10: 80.9 | G10: =VLOOKUP(B10,[1]Sheet1!$A:$G,7,FALSE) -> 55.31 | H10: 是
A11: 9 | B11: 付照兰 | C11: =VLOOKUP(B11,[1]Sheet1!$A:$N,14,FALSE) -> 初中英语教育教学 | D11: 111102130403 | E11: =VLOOKUP(B11,[1]Sheet1!$A:$D,4,FALSE) -> 75.5 | F11: 0.00 | G11: =VLOOKUP(B11,[1]Sheet1!$A:$G,7,FALSE) -> 22.65 | H11: 否
A12: 10 | B12: 王乾美 | C12: =VLOOKUP(B12,[1]Sheet1!$A:$N,14,FALSE) -> 初中英语教育教学 | D12: 111102140403 | E12: =VLOOKUP(B12,[1]Sheet1!$A:$D,4,FALSE) -> 80.5 | F12: 78.94 | G12: =VLOOKUP(B12,[1]Sheet1!$A:$G,7,FALSE) -> 55.73 | H12: 是
A13: 11 | B13: 李旺 | C13: =VLOOKUP(B13,[1]Sheet1!$A:$N,14,FALSE) -> 高中体育与健康教育教学 | D13: 111101071604 | E13: =VLOOKUP(B13,[1]Sheet1!$A:$D,4,FALSE) -> 70 | F13: 0 | G13: =VLOOKUP(B13,[1]Sheet1!$A:$G,7,FALSE) -> 21.00 | H13: 否
A14: 12 | B14: 梁健靓 | C14: =VLOOKUP(B14,[1]Sheet1!$A:$N,14,FALSE) -> 高中体育与健康教育教学 | D14: 111101081604 | E14: =VLOOKUP(B14,[1]Sheet1!$A:$D,4,FALSE) -> 70 | F14: 87.44 | G14: =VLOOKUP(B14,[1]Sheet1!$A:$G,7,FALSE) -> 55.98 | H14: 是
A15: 13 | B15: 熊林 | C15: =VLOOKUP(B15,[1]Sheet1!$A:$N,14,FALSE) -> 高中体育与健康教育教学 | D15: 111101101604 | E15: =VLOOKUP(B15,[1]Sheet1!$A:$D,4,FALSE) -> 75 | F15: 79.86 | G15: =VLOOKUP(B15,[1]Sheet1!$A:$G,7,FALSE) -> 54.44 | H15: 是
